{"text_format":"1","workbook":"xlsx","n_sheets":9,"sheets":["Intro","RR1","Imp Par","RR2","Hold i alt","Slutspil","Par","Grand prix","Fremmøde"],"not_rendered":{"charts":0,"images":0,"macros":0,"external_links":0,"defined_names":0,"comments":0,"pivot_tables":0},"unopened":[],"bounds":{"document_bytes":16777216,"sheet_cells":100000,"rows_first":2000,"rows_last":500,"rows_between":2000,"halvings":0,"cell_chars":16384,"cell_head_chars":4096},"cells_cut":0,"cells_raw":0,"read":"whole","date_system":"1900"}

{"sheet":"Intro","index":0,"n_rows":45,"n_cols":24,"rows_kept":45,"cut":false,"hidden":false,"merged":[[0,0,0,24]]}
[" Multi, intro hold"]
[]
[null,null,null,null,1,2,3,4,5,6,7,8,9,10,11,12,13,14,15,16,null,"Total",null,"Placering"]
[]
["Marlene Henneberg - J.O Henneberg",null,null,null,12.21,10.08,14.02,10.14,10.34,6.69,11.64,3.86,6.68,11.89,9.1300000000000008,9.69,7.84,5.54,7.33,13.54,null,{"$f":"AVERAGE(E5:T5)","v":9.4137500000000003},null,11]
["Jesper Bechsgaard - Anders Handberg Sørensen",null,null,null,8.65,8.8699999999999992,10.34,15.37,7.3,8.1300000000000008,9.27,9.09,9.89,3.61,7.04,5.61,9.2200000000000006,2.52,7.27,16.53,null,{"$f":"AVERAGE(E6:T6)","v":8.6693749999999987},null,15]
[]
["Emil Jepsen - Dennis Bilde",null,null,null,2.75,6.79,9.66,9.86,7.5,10.92,15.37,12.03,12.01,13.31,11.74,8.4499999999999993,14.43,9.43,9.48,19.510000000000002,null,{"$f":"AVERAGE(E8:T8)","v":10.827499999999999},null,3]
["Martin Klausen - Palle Jensen",null,null,null,6.51,6.32,5.98,4.63,4.8899999999999997,11.62,7.55,6.53,10.11,8.3800000000000008,8.4499999999999993,11.87,13.08,6.03,10.98,3.69,null,{"$f":"AVERAGE(E9:T9)","v":7.9137500000000003},null,16]
[]
["Morten Stege - Nils Mønsted",null,null,null,11.16,15.5,14.05,8.7799999999999994,9.66,11.87,4.63,13.47,3.54,15.78,8.4700000000000006,5.13,2.2200000000000002,14.52,10.52,16.309999999999999,null,{"$f":"AVERAGE(E11:T11)","v":10.350625000000001},null,6]
["Preben Taasti - Benny Maruart",null,null,null,8.17,15.72,10.25,7.25,12.7,13.31,12.45,7.97,6.73,4.1100000000000003,10.68,9.65,5.82,16.13,9.02,0.49,null,{"$f":"AVERAGE(E12:T12)","v":9.4031250000000011},null,12]
[]
["H K Sørensen - Niels Henriksen",null,null,null,12.06,9,16.75,14.33,9.66,12.89,10.73,16.14,9.89,6.69,9.32,14.87,14.86,8.1999999999999993,11.03,13.25,null,{"$f":"AVERAGE(E14:T14)","v":11.854374999999999},null,2]
["Søren Caspersen - Emil Buus Thomsen",null,null,null,1.76,8.48,9.52,6.91,8.27,15.11,8.36,10.91,7.97,11.62,11.53,10.35,8.52,10.18,10.17,9.26,null,{"$f":"AVERAGE(E15:T15)","v":9.3074999999999974},null,13]
[]
["Camilla Bo Krefeld - Johan Hammelev",null,null,null,18.239999999999998,11,8.81,15.53,14.21,14.32,9.5500000000000007,17.100000000000001,13.32,16.39,11.55,11.55,17.78,3.87,9.83,6.75,null,{"$f":"AVERAGE(E17:T17)","v":12.487500000000001},null,1]
["Lida Hulgaard - Øjvind Hulgaard",null,null,null,7.94,11.52,15.12,4.4000000000000004,12.39,14.39,9.14,16.29,10.11,8.11,8.26,8.1300000000000008,14.18,5.48,8.9700000000000006,10.74,null,{"$f":"AVERAGE(E18:T18)","v":10.323124999999999},null,7]
[]
["Stig Andersen - Ricardo Mirasola",null,null,null,8.84,4.28,3.25,13.09,5.79,5.61,12.18,13.74,5.35,18.64,10.87,14.39,5.57,13.97,12.73,6.46,null,{"$f":"AVERAGE(E20:T20)","v":9.6724999999999994},null,8]
["Lars Peter Damgaard - Jørgen Pabst",null,null,null,11.83,4.5,10.48,5.67,7.61,5.68,2.41,14.82,13.65,10.32,12.96,10.31,6.92,10.57,12.67,3.47,null,{"$f":"AVERAGE(E21:T21)","v":8.9918750000000003},null,14]
[]
["Morten Bilde - Søren Cilleborg Bilde",null,null,null,13.49,13.21,5.95,12.75,11.73,7.11,10.45,3.71,6.35,1.36,14.89,11.91,12.16,17.48,9.0299999999999994,2.13,null,{"$f":"AVERAGE(E23:T23)","v":9.6068749999999987},null,10]
["Jens Kofoed - Johanne Bilde Kofoed",null,null,null,17.25,13.68,9.75,11.22,10.34,4.8899999999999997,10.86,2.9,14.65,9.68,11.73,8.06,10.78,14.46,11.32,10.97,null,{"$f":"AVERAGE(E24:T24)","v":10.78375},null,4]
[]
["Jørgen Cilleborg Hansen - Steen Schou",null,null,null,7.79,11.13,11.19,15.6,10.34,4.8899999999999997,7.82,5.18,16.46,15.89,5.1100000000000003,11.94,11.48,11.8,10.97,9.0299999999999994,null,{"$f":"AVERAGE(E26:T26)","v":10.41375},null,5]
["Arne Skyum - Lars Ugilt Jensen",null,null,null,11.35,9.91,4.88,4.47,15.11,9.08,17.59,6.26,13.27,4.22,8.27,8.09,5.14,9.82,8.68,17.87,null,{"$f":"AVERAGE(E27:T27)","v":9.6256250000000012},null,9]
[]
[]
[]
[]
[]
[]
[]
[]
[]
[]
[]
[]
[]
[]
[]
[]
["Øjvind Hulgaard - Jesper Gad"]
["Niels Krøjgaard - Henrik Caspersen - H C Graversen"]

{"sheet":"RR1","index":1,"n_rows":27,"n_cols":21,"rows_kept":27,"cut":false,"hidden":false,"merged":[[0,0,0,21]]}
["Multi, RR1"]
[]
[null,null,null,null,1,2,3,4,5,6,7,8,9,10,11,12,13,14,null,"Total","Placering"]
[]
[null,null,null,null,null,null,null,null,null,null,null,null,null,null,null,null,null,null,null,{"$f":"AVERAGE(E5:R5)","v":{"$error":"#DIV/0!"}}]
[null,null,null,null,null,null,null,null,null,null,null,null,null,null,null,null,null,null,null,{"$f":"AVERAGE(E6:R6)","v":{"$error":"#DIV/0!"}}]
[]
[null,null,null,null,null,null,null,null,null,null,null,null,null,null,null,null,null,null,null,{"$f":"AVERAGE(E8:R8)","v":{"$error":"#DIV/0!"}}]
[null,null,null,null,null,null,null,null,null,null,null,null,null,null,null,null,null,null,null,{"$f":"AVERAGE(E9:R9)","v":{"$error":"#DIV/0!"}}]
[]
[null,null,null,null,null,null,null,null,null,null,null,null,null,null,null,null,null,null,null,{"$f":"AVERAGE(E11:R11)","v":{"$error":"#DIV/0!"}}]
[null,null,null,null,null,null,null,null,null,null,null,null,null,null,null,null,null,null,null,{"$f":"AVERAGE(E12:R12)","v":{"$error":"#DIV/0!"}}]
[]
[null,null,null,null,null,null,null,null,null,null,null,null,null,null,null,null,null,null,null,{"$f":"AVERAGE(E14:R14)","v":{"$error":"#DIV/0!"}}]
[null,null,null,null,null,null,null,null,null,null,null,null,null,null,null,null,null,null,null,{"$f":"AVERAGE(E15:R15)","v":{"$error":"#DIV/0!"}}]
[]
[null,null,null,null,null,null,null,null,null,null,null,null,null,null,null,null,null,null,null,{"$f":"AVERAGE(E17:R17)","v":{"$error":"#DIV/0!"}}]
[null,null,null,null,null,null,null,null,null,null,null,null,null,null,null,null,null,null,null,{"$f":"AVERAGE(E18:R18)","v":{"$error":"#DIV/0!"}}]
[]
[null,null,null,null,null,null,null,null,null,null,null,null,null,null,null,null,null,null,null,{"$f":"AVERAGE(E20:R20)","v":{"$error":"#DIV/0!"}}]
[null,null,null,null,null,null,null,null,null,null,null,null,null,null,null,null,null,null,null,{"$f":"AVERAGE(E21:R21)","v":{"$error":"#DIV/0!"}}]
[]
[null,null,null,null,null,null,null,null,null,null,null,null,null,null,null,null,null,null,null,{"$f":"AVERAGE(E23:R23)","v":{"$error":"#DIV/0!"}}]
[null,null,null,null,null,null,null,null,null,null,null,null,null,null,null,null,null,null,null,{"$f":"AVERAGE(E24:R24)","v":{"$error":"#DIV/0!"}}]
[]
[null,null,null,null,null,null,null,null,null,null,null,null,null,null,null,null,null,null,null,{"$f":"AVERAGE(E26:R26)","v":{"$error":"#DIV/0!"}}]
[null,null,null,null,null,null,null,null,null,null,null,null,null,null,null,null,null,null,null,{"$f":"AVERAGE(E27:R27)","v":{"$error":"#DIV/0!"}}]

{"sheet":"Imp Par","index":2,"n_rows":22,"n_cols":18,"rows_kept":22,"cut":false,"hidden":false,"merged":[[0,0,0,17]]}
["IMP Par"]
[]
[]
[null,"R1","R2","R3","R4","R5","R6","R7","R8","R9","R10","R11","R12","R13","R14","R15","Sum","Placering"]
[]
[null,null,null,null,null,null,null,null,null,null,null,null,null,null,null,null,{"$f":"SUM(B6:P6)","v":0}]
[null,null,null,null,null,null,null,null,null,null,null,null,null,null,null,null,0]
[null,null,null,null,null,null,null,null,null,null,null,null,null,null,null,null,0]
[null,null,null,null,null,null,null,null,null,null,null,null,null,null,null,null,0]
[null,null,null,null,null,null,null,null,null,null,null,null,null,null,null,null,0]
[null,null,null,null,null,null,null,null,null,null,null,null,null,null,null,null,0]
[null,null,null,null,null,null,null,null,null,null,null,null,null,null,null,null,0]
[null,null,null,null,null,null,null,null,null,null,null,null,null,null,null,null,0]
[null,null,null,null,null,null,null,null,null,null,null,null,null,null,null,null,0]
[null,null,null,null,null,null,null,null,null,null,null,null,null,null,null,null,0]
[null,null,null,null,null,null,null,null,null,null,null,null,null,null,null,null,0]
[null,null,null,null,null,null,null,null,null,null,null,null,null,null,null,null,0]
[null,null,null,null,null,null,null,null,null,null,null,null,null,null,null,null,0]
[null,null,null,null,null,null,null,null,null,null,null,null,null,null,null,null,0]
[null,null,null,null,null,null,null,null,null,null,null,null,null,null,null,null,0]
[null,null,null,null,null,null,null,null,null,null,null,null,null,null,null,null,0]
[null,{"$f":"SUM(B6:B21)","v":0},{"$f":"SUM(C6:C21)","v":0},{"$f":"SUM(D6:D21)","v":0},{"$f":"SUM(E6:E21)","v":0},{"$f":"SUM(F6:F21)","v":0},{"$f":"SUM(G6:G21)","v":0},0,0,0,0,0,0,0,0,0,{"$f":"SUM(Q6:Q21)","v":0}]

{"sheet":"RR2","index":3,"n_rows":27,"n_cols":21,"rows_kept":27,"cut":false,"hidden":false,"merged":[[0,0,0,21]]}
[" Multi, RR2"]
[]
[null,null,null,null,1,2,3,4,5,6,7,8,9,10,11,12,13,14,null,"Total","Placering"]
[]
[null,null,null,null,null,null,null,null,null,null,null,null,null,null,null,null,null,null,null,{"$f":"AVERAGE(E5:R5)","v":{"$error":"#DIV/0!"}}]
[null,null,null,null,null,null,null,null,null,null,null,null,null,null,null,null,null,null,null,{"$f":"AVERAGE(E6:R6)","v":{"$error":"#DIV/0!"}}]
[]
[null,null,null,null,null,null,null,null,null,null,null,null,null,null,null,null,null,null,null,{"$f":"AVERAGE(E8:R8)","v":{"$error":"#DIV/0!"}}]
[null,null,null,null,null,null,null,null,null,null,null,null,null,null,null,null,null,null,null,{"$f":"AVERAGE(E9:R9)","v":{"$error":"#DIV/0!"}}]
[]
[null,null,null,null,null,null,null,null,null,null,null,null,null,null,null,null,null,null,null,{"$f":"AVERAGE(E11:R11)","v":{"$error":"#DIV/0!"}}]
[null,null,null,null,null,null,null,null,null,null,null,null,null,null,null,null,null,null,null,{"$f":"AVERAGE(E12:R12)","v":{"$error":"#DIV/0!"}}]
[]
[null,null,null,null,null,null,null,null,null,null,null,null,null,null,null,null,null,null,null,{"$f":"AVERAGE(E14:R14)","v":{"$error":"#DIV/0!"}}]
[null,null,null,null,null,null,null,null,null,null,null,null,null,null,null,null,null,null,null,{"$f":"AVERAGE(E15:R15)","v":{"$error":"#DIV/0!"}}]
[]
[null,null,null,null,null,null,null,null,null,null,null,null,null,null,null,null,null,null,null,{"$f":"AVERAGE(E17:R17)","v":{"$error":"#DIV/0!"}}]
[null,null,null,null,null,null,null,null,null,null,null,null,null,null,null,null,null,null,null,{"$f":"AVERAGE(E18:R18)","v":{"$error":"#DIV/0!"}}]
[]
[null,null,null,null,null,null,null,null,null,null,null,null,null,null,null,null,null,null,null,{"$f":"AVERAGE(E20:R20)","v":{"$error":"#DIV/0!"}}]
[null,null,null,null,null,null,null,null,null,null,null,null,null,null,null,null,null,null,null,{"$f":"AVERAGE(E21:R21)","v":{"$error":"#DIV/0!"}}]
[]
[null,null,null,null,null,null,null,null,null,null,null,null,null,null,null,null,null,null,null,{"$f":"AVERAGE(E23:R23)","v":{"$error":"#DIV/0!"}}]
[null,null,null,null,null,null,null,null,null,null,null,null,null,null,null,null,null,null,null,{"$f":"AVERAGE(E24:R24)","v":{"$error":"#DIV/0!"}}]
[]
[null,null,null,null,null,null,null,null,null,null,null,null,null,null,null,null,null,null,null,{"$f":"AVERAGE(E26:R26)","v":{"$error":"#DIV/0!"}}]
[null,null,null,null,null,null,null,null,null,null,null,null,null,null,null,null,null,null,null,{"$f":"AVERAGE(E27:R27)","v":{"$error":"#DIV/0!"}}]

{"sheet":"Hold i alt","index":4,"n_rows":14,"n_cols":5,"rows_kept":14,"cut":false,"hidden":false,"merged":[[0,0,0,5]]}
["Klub 32 - Hold 2020/2021"]
[]
[]
[]
[null,"RR1","RR2","Total","Placering"]
[null,null,null,{"$f":"SUM(B6:C6)","v":0},1]
[null,null,null,0,2]
[null,null,null,0,3]
[null,null,null,0,4]
[null,null,null,0,5]
[null,null,null,0,6]
[null,null,null,0,7]
[null,null,null,0,8]
[null," "]

{"sheet":"Slutspil","index":5,"n_rows":30,"n_cols":15,"rows_kept":30,"cut":false,"hidden":false,"merged":[[0,0,0,14],[1,3,1,10]]}
["SLUTSPIL"]
[null,null,null,"Resultater som totalimp fra RB"]
[]
[null,null,null,null,1,2,3,4,null,null,null,null,null,"Total","Placering"]
[]
[null,null,null,null,null,null,null,null,null,null,null,null,null,{"$f":"SUM(E6:H6)","v":0}]
[null,null,null,null,null,null,null,null,null,null,null,null,null,{"$f":"SUM(E7:H7)","v":0}]
[]
[null,null,null,null,null,null,null,null,null,null,null,null,null,0]
[null,null,null,null,null,null,null,null,null,null,null,null,null,0]
[]
[null,null,null,null,null,null,null,null,null,null,null,null,null,0]
[null,null,null,null,null,null,null,null,null,null,null,null,null,0]
[]
[null,null,null,null,null,null,null,null,null,null,null,null,null,0]
[null,null,null,null,null,null,null,null,null,null,null,null,null,0]
[]
[null,null,null,null,null,null,null,null,null,null,null,null,null,0]
[null,null,null,null,null,null,null,null,null,null,null,null,null,0]
[]
[null,null,null,null,null,null,null,null,null,null,null,null,null,0]
[null,null,null,null,null,null,null,null,null,null,null,null,null,0]
[]
[null,null,null,null,null,null,null,null,null,null,null,null,null,0]
[null,null,null,null,null,null,null,null,null,null,null,null,null,0]
[]
[null,null,null,null,null,null,null,null,null,null,null,null,null,0]
[null,null,null,null,null,null,null,null,null,null,null,null,null,0]
[]
[null,null,null,null,{"$f":"SUM(E6:E28)","v":0},{"$f":"SUM(F6:F28)","v":0},{"$f":"SUM(G6:G28)","v":0},{"$f":"SUM(H6:H28)","v":0},null,null,null,null,null,{"$f":"SUM(N6:N28)","v":0}]

{"sheet":"Par","index":6,"n_rows":21,"n_cols":10,"rows_kept":21,"cut":false,"hidden":false,"merged":[[0,0,0,7]]}
["Par"]
["Resultater fra Realbridge "]
[null,"1.aften","2.aften","3.aften","4.aften",null,"Sum","Placering",null,392]
[]
[null,null,null,null,null,null,{"$f":"SUM(B5:F5)","v":0}]
[null,null,null,null,null,null,{"$f":"SUM(B6:E6)","v":0}]
[null,null,null,null,null,null,{"$f":"SUM(B7:F7)","v":0}]
[null,null,null,null,null,null,{"$f":"SUM(B8:E8)","v":0}]
[null,null,null,null,null,null,{"$f":"SUM(B9:E9)","v":0}]
[null,null,null,null,null,null,{"$f":"SUM(B10:F10)","v":0}]
[null,null,null,null,null,null,{"$f":"SUM(B11:F11)","v":0}]
[null,null,null,null,null,null,{"$f":"SUM(B12:E12)","v":0}]
[null,null,null,null,null,null,{"$f":"SUM(B13:E13)","v":0}]
[null,null,null,null,null,null,{"$f":"SUM(B14:E14)","v":0}]
[null,null,null,null,null,null,{"$f":"SUM(B15:E15)","v":0}]
[null,null,null,null,null,null,{"$f":"SUM(B16:F16)","v":0}]
[null,null,null,null,null,null,{"$f":"SUM(B17:F17)","v":0}]
[null,null,null,null,null,null,{"$f":"SUM(B18:F18)","v":0}]
[null,null,null,null,null,null,{"$f":"SUM(B19:F19)","v":0}]
[null,null,null,null,null,null,{"$f":"SUM(B20:E20)","v":0}]
[null,{"$f":"SUM(B5:B20)","v":0},{"$f":"SUM(C5:C20)","v":0},{"$f":"SUM(D5:D20)","v":0},{"$f":"SUM(E5:E20)","v":0},null,{"$f":"SUM(G5:G20)","v":0}]

{"sheet":"Grand prix","index":7,"n_rows":20,"n_cols":18,"rows_kept":20,"cut":false,"hidden":false,"merged":[[0,0,0,15]]}
["Grand prix klub 32 (2021-2022)"]
[]
[null,null,null,null,null,"Intro hold","RR 1","IMP1","RR2","Slutspil","Par",null,"Total",null,"Placering"]
[]
["Camilla Bo Krefeld - Johan Hammelev",null,null,null,null,{"$f":"Intro!X17*4","v":4},{"$f":"'RR1'!U27*7","v":0},{"$f":"'Imp Par'!R11*5","v":0},{"$f":"'RR2'!U27*7","v":0},{"$f":"Slutspil!O28*4","v":0},{"$f":"Par!H15*4","v":0},null,{"$f":"SUM(F5:L5)","v":4},null,1]
["H K Sørensen - Niels Henriksen",null,null,null,null,{"$f":"Intro!X14*4","v":8},{"$f":"'RR1'!U14*7","v":0},{"$f":"'Imp Par'!R16*5","v":0},{"$f":"'RR2'!U14*7","v":0},{"$f":"Slutspil!O15*4","v":0},{"$f":"Par!H19*4","v":0},null,8,null,"2"]
["Emil Jepsen - Dennis Bilde",null,null,null,null,{"$f":"Intro!X8*4","v":12},{"$f":"'RR1'!U5*7","v":0},{"$f":"'Imp Par'!R10*5","v":0},{"$f":"'RR2'!U5*7","v":0},{"$f":"Slutspil!O6*4","v":0},{"$f":"Par!H18*4","v":0},null,12,null,3]
["Jens Kofoed - Johanne Bilde Kofoed",null,null,null,null,{"$f":"Intro!X24*4","v":16},{"$f":"'RR1'!U18*7","v":0},{"$f":"'Imp Par'!R12*5","v":0},{"$f":"'RR2'!U18*7","v":0},{"$f":"Slutspil!O19*4","v":0},{"$f":"Par!H16*4","v":0},null,16,null,4]
["Jørgen Cilleborg Hansen - Steen Schou",null,null,null,null,{"$f":"Intro!X26*4","v":20},{"$f":"'RR1'!U8*7","v":0},{"$f":"'Imp Par'!R20*5","v":0},{"$f":"'RR2'!U8*7","v":0},{"$f":"Slutspil!O9*4","v":0},{"$f":"Par!H11*4","v":0},null,20,null,"5"]
["Morten Stege - Nils Mønsted",null,null,null,null,{"$f":"Intro!X11*4","v":24},{"$f":"'RR1'!U11*7","v":0},{"$f":"'Imp Par'!R8*5","v":0},{"$f":"'RR2'!U11*7","v":0},{"$f":"Slutspil!O12*4","v":0},{"$f":"Par!H6*4","v":0},null,24,null,6]
["Lida Hulgaard - Øjvind Hulgaard",null,null,null,null,{"$f":"Intro!X18*4","v":28},{"$f":"'RR1'!U20*7","v":0},{"$f":"'Imp Par'!R17*5","v":0},{"$f":"'RR2'!U20*7","v":0},{"$f":"Slutspil!O21*4","v":0},{"$f":"Par!H9*4","v":0},null,28,null,7]
["Stig Andersen - Ricardo Mirasola",null,null,null,null,{"$f":"Intro!X20*4","v":32},{"$f":"'RR1'!U26*7","v":0},{"$f":"'Imp Par'!R19*5","v":0},{"$f":"'RR2'!U26*7","v":0},{"$f":"Slutspil!O27*4","v":0},{"$f":"Par!H17*4","v":0},null,32,null,"8"]
["Arne Skyum - Lars Ugilt Jensen",null,null,null,null,{"$f":"Intro!X27*4","v":36},{"$f":"'RR1'!U21*7","v":0},{"$f":"'Imp Par'!R21*5","v":0},{"$f":"'RR2'!U21*7","v":0},{"$f":"Slutspil!O22*4","v":0},{"$f":"Par!H20*4","v":0},null,36,null,"9"]
["Morten Bilde - Søren Cilleborg Bilde",null,null,null,null,{"$f":"Intro!X23*4","v":40},{"$f":"'RR1'!U9*7","v":0},{"$f":"'Imp Par'!R18*5","v":0},{"$f":"'RR2'!U9*7","v":0},{"$f":"Slutspil!O10*4","v":0},{"$f":"Par!H14*4","v":0},null,40,null,10,null,null,"  "]
["Marlene Henneberg - J.O Henneberg",null,null,null,null,{"$f":"Intro!X5*4","v":44},{"$f":"'RR1'!U24*7","v":0},{"$f":"'Imp Par'!R9*5","v":0},{"$f":"'RR2'!U24*7","v":0},{"$f":"Slutspil!O25*4","v":0},{"$f":"Par!H7*4","v":0},null,44,null,11]
["Preben Taasti - Benny Maruart",null,null,null,null,{"$f":"Intro!X12*4","v":48},{"$f":"'RR1'!U23*7","v":0},{"$f":"'Imp Par'!R7*5","v":0},{"$f":"'RR2'!U23*7","v":0},{"$f":"Slutspil!O24*4","v":0},{"$f":"Par!H13*4","v":0},null,48,null,12]
["Søren Caspersen - Emil Buus Thomsen",null,null,null,null,{"$f":"Intro!X15*4","v":52},{"$f":"'RR1'!U15*7","v":0},{"$f":"'Imp Par'!R13*5","v":0},{"$f":"'RR2'!U15*7","v":0},{"$f":"Slutspil!O16*4","v":0},{"$f":"Par!H10*4","v":0},null,52,null,13]
["Lars Peter Damgaard - Jørgen Pabst",null,null,null,null,{"$f":"Intro!X21*4","v":56},{"$f":"'RR1'!U12*7","v":0},{"$f":"'Imp Par'!R15*5","v":0},{"$f":"'RR2'!U12*7","v":0},{"$f":"Slutspil!O13*4","v":0},{"$f":"Par!H12*4","v":0},null,56,null,14]
["Jesper Bechsgaard - Anders Handberg Sørensen",null,null,null,null,{"$f":"Intro!X6*4","v":60},{"$f":"'RR1'!U17*7","v":0},{"$f":"'Imp Par'!R6*5","v":0},{"$f":"'RR2'!U17*7","v":0},{"$f":"Slutspil!O18*4","v":0},{"$f":"Par!H5*4","v":0},null,60,null,15]
["Martin Klausen - Palle Jensen",null,null,null,null,{"$f":"Intro!X9*4","v":64},{"$f":"'RR1'!U6*7","v":0},{"$f":"'Imp Par'!R14*5","v":0},{"$f":"'RR2'!U6*7","v":0},{"$f":"Slutspil!O7*4","v":0},{"$f":"Par!H8*4","v":0},null,64,null,16]

{"sheet":"Fremmøde","index":8,"n_rows":21,"n_cols":11,"rows_kept":21,"cut":false,"hidden":false,"merged":[[4,1,4,6]]}
["Fremmøde som samlet par"]
[]
[null,"Introhold","RR1","Imp","RR2","Slut","par",null,"Fremmøde%",null,"Fremmøde/antal"]
["Aftener:",4,7,5,7,4,4,null,null,null,4]
[null,"Fremmøde"]
["Marlene Henneberg - J.O Henneberg",4,null,null,null,null,null,null,{"$f":"SUM(B6:G6)/$K$4%","v":100},null,{"$f":"SUM(B6:G6)","v":4}]
["Jesper Bechsgaard - Anders Handberg Sørensen",4,null,null,null,null,null,null,{"$f":"SUM(B7:G7)/$K$4%","v":100},null,{"$f":"SUM(B7:G7)","v":4}]
["Preben Taasti - Benny Maruart",4,null,null,null,null,null,null,{"$f":"SUM(B8:G8)/$K$4%","v":100},null,{"$f":"SUM(B8:G8)","v":4}]
["H K Sørensen - Niels Henriksen",4,null,null,null,null,null,null,{"$f":"SUM(B9:G9)/$K$4%","v":100},null,{"$f":"SUM(B9:G9)","v":4}]
["Camilla Bo Krefeld - Johan Hammelev",4,null,null,null,null,null,null,{"$f":"SUM(B10:G10)/$K$4%","v":100},null,{"$f":"SUM(B10:G10)","v":4}]
["Stig Andersen - Ricardo Mirasola",4,null,null,null,null,null,null,{"$f":"SUM(B11:G11)/$K$4%","v":100},null,{"$f":"SUM(B11:G11)","v":4}]
["Lars Peter Damgaard - Jørgen Pabst",4,null,null,null,null,null,null,{"$f":"SUM(B12:G12)/$K$4%","v":100},null,{"$f":"SUM(B12:G12)","v":4}]
["Arne Skyum - Lars Ugilt Jensen",4,null,null,null,null,null,null,{"$f":"SUM(B13:G13)/$K$4%","v":100},null,{"$f":"SUM(B13:G13)","v":4}]
["Martin Klausen - Palle Jensen",3,null,null,null,null,null,null,{"$f":"SUM(B14:G14)/$K$4%","v":75},null,{"$f":"SUM(B14:G14)","v":3}]
["Jørgen Cilleborg Hansen - Steen Schou",3,null,null,null,null,null,null,{"$f":"SUM(B15:G15)/$K$4%","v":75},null,{"$f":"SUM(B15:G15)","v":3}]
["Lida Hulgaard - Øjvind Hulgaard",2,null,null,null,null,null,null,{"$f":"SUM(B16:G16)/$K$4%","v":50},null,{"$f":"SUM(B16:G16)","v":2}]
["Emil Jepsen - Dennis Bilde",2,null,null,null,null,null,null,{"$f":"SUM(B17:G17)/$K$4%","v":50},null,{"$f":"SUM(B17:G17)","v":2}]
["Søren Caspersen - Emil Buus Thomsen",2,null,null,null,null,null,null,{"$f":"SUM(B18:G18)/$K$4%","v":50},null,{"$f":"SUM(B18:G18)","v":2}]
["Morten Bilde - Søren Cilleborg Bilde",2,null,null,null,null,null,null,{"$f":"SUM(B19:G19)/$K$4%","v":50},null,{"$f":"SUM(B19:G19)","v":2}]
["Morten Stege - Nils Mønsted",0,null,null,null,null,null,null,{"$f":"SUM(B20:G20)/$K$4%","v":0},null,{"$f":"SUM(B20:G20)","v":0}]
["Jens Kofoed - Johanne Bilde Kofoed",0,null,null,null,null,null,null,{"$f":"SUM(B21:G21)/$K$4%","v":0},null,{"$f":"SUM(B21:G21)","v":0}]